[Event "Titled Tuesday Blitz April 19 Early 2022"]
[White "De Souza, Cristiano Gomes"]
[Black "Silva Lucena, Cristian"]
[WhiteFideId "2151758"]
[BlackFideId "2232588"]
[WhiteElo "2068"]
[BlackElo "2223"]
[Result "1-0"]
[Round "10"]
[TimeControl "180+1"]
[Date "2022.04.19"]
[WhiteClock "0:00:08"]
[BlackClock "0:00:14"]

1. d4 {[%clk 0:03:00]}  Nf6 {[%clk 0:02:58]} 2. c4 {[%clk 0:03:01]}  e6 {[%clk 0:02:58]} 3. Nf3 {[%clk 0:03:00]}  d5 {[%clk 0:02:45]} 4. Nc3 {[%clk 0:02:57]}  Be7 {[%clk 0:02:40]} 5. Bg5 {[%clk 0:02:56]}  Nbd7 {[%clk 0:02:39]} 6. e3 {[%clk 0:02:56]}  h6 {[%clk 0:02:39]} 7. Bh4 {[%clk 0:02:55]}  O-O {[%clk 0:02:39]} 8. Rc1 {[%clk 0:02:54]}  c5 {[%clk 0:02:38]} 9. cxd5 {[%clk 0:02:53]}  Nxd5 {[%clk 0:02:35]} 10. Nxd5 {[%clk 0:02:47]}  Bxh4 {[%clk 0:02:32]} 11. Nxh4 {[%clk 0:02:39]}  exd5 {[%clk 0:02:22]} 12. Nf5 {[%clk 0:02:35]}  Nf6 {[%clk 0:02:13]} 13. Ng3 {[%clk 0:02:33]}  cxd4 {[%clk 0:02:10]} 14. Qxd4 {[%clk 0:02:31]}  Qa5+ {[%clk 0:02:07]} 15. b4 {[%clk 0:02:29]}  Qxa2 {[%clk 0:02:05]} 16. Ra1 {[%clk 0:02:29]}  Qb3 {[%clk 0:01:58]} 17. Bd3 {[%clk 0:02:26]}  Be6 {[%clk 0:01:41]} 18. O-O {[%clk 0:02:24]}  Rfc8 {[%clk 0:01:41]} 19. Rfc1 {[%clk 0:01:29]}  Rxc1+ {[%clk 0:01:37]} 20. Rxc1 {[%clk 0:01:28]}  a6 {[%clk 0:01:30]} 21. h3 {[%clk 0:01:25]}  Qa4 {[%clk 0:01:23]} 22. Rc7 {[%clk 0:01:22]}  Rc8 {[%clk 0:01:08]} 23. Rxb7 {[%clk 0:01:17]}  Qd1+ {[%clk 0:01:03]} 24. Kh2 {[%clk 0:01:16]}  Rc1 {[%clk 0:01:02]} 25. Rb8+ {[%clk 0:00:50]}  Bc8 {[%clk 0:01:01]} 26. Nf1 {[%clk 0:00:35]}  Qh5 {[%clk 0:00:48]} 27. Bxa6 {[%clk 0:00:24]}  Qf5 {[%clk 0:00:39]} 28. Ng3 {[%clk 0:00:17]}  Qe6 {[%clk 0:00:32]} 29. Qa7 {[%clk 0:00:17]}  Kh7 {[%clk 0:00:20]} 30. Bxc8 {[%clk 0:00:16]}  Rxc8 {[%clk 0:00:21]} 31. Rxc8 {[%clk 0:00:16]}  Qxc8 {[%clk 0:00:22]} 32. Qxf7 {[%clk 0:00:15]}  h5 {[%clk 0:00:18]} 33. Nxh5 {[%clk 0:00:11]}  Nxh5 {[%clk 0:00:18]} 34. Qxh5+ {[%clk 0:00:10]}  Kg8 {[%clk 0:00:19]} 35. Qxd5+ {[%clk 0:00:10]}  Kh8 {[%clk 0:00:20]} 36. Qc5 {[%clk 0:00:09]}  Qb8+ {[%clk 0:00:20]} 37. f4 {[%clk 0:00:09]}  Qd8 {[%clk 0:00:20]} 38. b5 {[%clk 0:00:09]}  Qd2 {[%clk 0:00:19]} 39. Qe5 {[%clk 0:00:08]}  Qe2 {[%clk 0:00:16]} 40. b6 {[%clk 0:00:09]}  Qe1 {[%clk 0:00:14]} 41. b7 {[%clk 0:00:09]}  Qb4 {[%clk 0:00:14]} 42. b8=Q+ {[%clk 0:00:08]} 1-0


[Site "https://www.chess.com"]

[Event "Titled Tuesday Blitz April 19 Early 2022"]
[White "Demin, Vladimir"]
[Black "Krylov, Ivan"]
[WhiteFideId "4167457"]
[BlackFideId "24128066"]
[WhiteElo "2383"]
[BlackElo "2258"]
[Result "1-0"]
[Round "10"]
[TimeControl "180+1"]
[Date "2022.04.19"]
[WhiteClock "0:01:06"]
[BlackClock "0:00:51"]

1. d4 {[%clk 0:03:00]}  d5 {[%clk 0:02:59]} 2. Nc3 {[%clk 0:03:00]}  Nf6 {[%clk 0:02:59]} 3. Bf4 {[%clk 0:02:58]}  c5 {[%clk 0:02:59]} 4. e3 {[%clk 0:02:59]}  cxd4 {[%clk 0:02:56]} 5. exd4 {[%clk 0:03:00]}  a6 {[%clk 0:02:56]} 6. Bd3 {[%clk 0:02:54]}  Nc6 {[%clk 0:02:55]} 7. Nge2 {[%clk 0:02:54]}  Bg4 {[%clk 0:02:53]} 8. f3 {[%clk 0:02:50]}  Bh5 {[%clk 0:02:52]} 9. Qd2 {[%clk 0:02:46]}  e6 {[%clk 0:02:51]} 10. a3 {[%clk 0:02:43]}  Bg6 {[%clk 0:02:50]} 11. g4 {[%clk 0:02:38]}  Bxd3 {[%clk 0:02:45]} 12. Qxd3 {[%clk 0:02:36]}  h6 {[%clk 0:02:45]} 13. h4 {[%clk 0:02:36]}  Bd6 {[%clk 0:02:45]} 14. Be3 {[%clk 0:02:30]}  Rc8 {[%clk 0:02:41]} 15. O-O-O {[%clk 0:02:28]}  b5 {[%clk 0:02:36]} 16. g5 {[%clk 0:02:23]}  hxg5 {[%clk 0:02:35]} 17. hxg5 {[%clk 0:02:23]}  Rxh1 {[%clk 0:02:34]} 18. Rxh1 {[%clk 0:02:24]}  Nd7 {[%clk 0:02:26]} 19. Qh7 {[%clk 0:02:14]}  Bf8 {[%clk 0:02:21]} 20. g6 {[%clk 0:02:14]}  Qe7 {[%clk 0:02:15]} 21. Nf4 {[%clk 0:02:11]}  Nf6 {[%clk 0:02:10]} 22. Qh8 {[%clk 0:02:06]}  Kd7 {[%clk 0:02:10]} 23. Nd3 {[%clk 0:01:59]}  fxg6 {[%clk 0:01:59]} 24. Bg5 {[%clk 0:01:36]}  Qf7 {[%clk 0:01:55]} 25. Qh3 {[%clk 0:01:28]}  Nxd4 {[%clk 0:01:42]} 26. Ne5+ {[%clk 0:01:28]}  Ke7 {[%clk 0:01:38]} 27. Nxf7 {[%clk 0:01:26]}  Kxf7 {[%clk 0:01:38]} 28. Re1 {[%clk 0:01:16]}  Bc5 {[%clk 0:01:28]} 29. Be3 {[%clk 0:01:12]}  Rd8 {[%clk 0:00:52]} 30. Bxd4 {[%clk 0:01:10]}  Bxd4 {[%clk 0:00:51]} 31. Qxe6+ {[%clk 0:01:11]}  Kf8 {[%clk 0:00:51]} 32. Qe7+ {[%clk 0:01:09]}  Kg8 {[%clk 0:00:51]} 33. Qxd8+ {[%clk 0:01:08]}  Ne8 {[%clk 0:00:51]} 34. Rxe8+ {[%clk 0:01:07]}  Kh7 {[%clk 0:00:51]} 35. Rh8# {[%clk 0:01:06]} 1-0


[Site "https://www.chess.com"]

[Event "Titled Tuesday Blitz April 19 Early 2022"]
[White "Devaev, Alexander"]
[Black "Lehtosaari, Mauri"]
[WhiteFideId "4169395"]
[BlackFideId "501999"]
[WhiteElo "2185"]
[BlackElo "2522"]
[Result "1-0"]
[Round "10"]
[TimeControl "180+1"]
[Date "2022.04.19"]
[WhiteClock "0:00:43"]
[BlackClock "0:00:21"]

1. Nf3 {[%clk 0:02:52]}  d5 {[%clk 0:02:59]} 2. c4 {[%clk 0:02:53]}  c6 {[%clk 0:02:59]} 3. e3 {[%clk 0:02:53]}  Nf6 {[%clk 0:03:00]} 4. b3 {[%clk 0:02:54]}  Bg4 {[%clk 0:02:58]} 5. Bb2 {[%clk 0:02:54]}  e6 {[%clk 0:02:58]} 6. d4 {[%clk 0:02:55]}  Nbd7 {[%clk 0:02:59]} 7. Nbd2 {[%clk 0:02:56]}  Bd6 {[%clk 0:02:58]} 8. Bd3 {[%clk 0:02:56]}  O-O {[%clk 0:02:58]} 9. Qc2 {[%clk 0:02:57]}  Bh5 {[%clk 0:02:57]} 10. Ne5 {[%clk 0:02:56]}  Bb4 {[%clk 0:01:54]} 11. O-O {[%clk 0:02:46]}  Bg6 {[%clk 0:01:50]} 12. Nxg6 {[%clk 0:02:44]}  hxg6 {[%clk 0:01:50]} 13. Nf3 {[%clk 0:02:39]}  Nh5 {[%clk 0:01:36]} 14. Ne5 {[%clk 0:02:29]}  Bd6 {[%clk 0:01:23]} 15. f4 {[%clk 0:02:25]}  Qe7 {[%clk 0:01:15]} 16. c5 {[%clk 0:02:25]}  Bc7 {[%clk 0:01:13]} 17. b4 {[%clk 0:02:17]}  Rfd8 {[%clk 0:01:03]} 18. g4 {[%clk 0:01:56]}  Nhf6 {[%clk 0:01:03]} 19. g5 {[%clk 0:01:57]}  Nh7 {[%clk 0:00:48]} 20. Nxf7 {[%clk 0:01:45]}  Ndf8 {[%clk 0:00:38]} 21. Ne5 {[%clk 0:01:39]}  Bxe5 {[%clk 0:00:35]} 22. dxe5 {[%clk 0:01:36]}  Rac8 {[%clk 0:00:30]} 23. h4 {[%clk 0:01:22]}  Qf7 {[%clk 0:00:24]} 24. Bd4 {[%clk 0:01:20]}  Rb8 {[%clk 0:00:20]} 25. h5 {[%clk 0:01:11]}  gxh5 {[%clk 0:00:16]} 26. g6 {[%clk 0:01:11]}  Qe7 {[%clk 0:00:15]} 27. gxh7+ {[%clk 0:01:11]}  Kh8 {[%clk 0:00:16]} 28. Qh2 {[%clk 0:01:07]}  g6 {[%clk 0:00:15]} 29. Kh1 {[%clk 0:01:01]}  Qxh7 {[%clk 0:00:14]} 30. Rg1 {[%clk 0:01:01]}  Rd7 {[%clk 0:00:15]} 31. Rg5 {[%clk 0:01:02]}  Rg7 {[%clk 0:00:15]} 32. Rag1 {[%clk 0:01:02]}  Re8 {[%clk 0:00:15]} 33. Bxg6 {[%clk 0:00:49]}  Nxg6 {[%clk 0:00:15]} 34. Rxh5 {[%clk 0:00:49]}  Kg8 {[%clk 0:00:12]} 35. Rxh7 {[%clk 0:00:48]}  Rxh7 {[%clk 0:00:13]} 36. Rxg6+ {[%clk 0:00:48]}  Kh8 {[%clk 0:00:14]} 37. Rh6 {[%clk 0:00:47]}  Re7 {[%clk 0:00:14]} 38. f5 {[%clk 0:00:45]}  Rxh6 {[%clk 0:00:14]} 39. Qxh6+ {[%clk 0:00:46]}  Rh7 {[%clk 0:00:15]} 40. Qxh7+ {[%clk 0:00:43]}  Kxh7 {[%clk 0:00:16]} 41. f6 {[%clk 0:00:42]}  Kg6 {[%clk 0:00:16]} 42. Kg2 {[%clk 0:00:42]}  Kf7 {[%clk 0:00:16]} 43. Kf3 {[%clk 0:00:43]}  a6 {[%clk 0:00:16]} 44. a4 {[%clk 0:00:42]}  Kg6 {[%clk 0:00:17]} 45. Kg4 {[%clk 0:00:43]}  Kf7 {[%clk 0:00:18]} 46. Kg5 {[%clk 0:00:43]}  Kg8 {[%clk 0:00:18]} 47. Kg6 {[%clk 0:00:44]}  Kf8 {[%clk 0:00:19]} 48. f7 {[%clk 0:00:43]}  Ke7 {[%clk 0:00:19]} 49. Kg7 {[%clk 0:00:43]}  Kd7 {[%clk 0:00:20]} 50. f8=Q {[%clk 0:00:43]}  Kc7 {[%clk 0:00:21]} 51. Qd6+ {[%clk 0:00:43]} 1-0


[Site "https://www.chess.com"]

[Event "Titled Tuesday Blitz April 19 Early 2022"]
[White "Donchenko, Alexander"]
[Black "Yurovskykh, Oleksandr"]
[WhiteFideId "24603295"]
[BlackFideId "14134020"]
[WhiteElo "2539"]
[BlackElo "2292"]
[Result "1-0"]
[Round "10"]
[TimeControl "180+1"]
[Date "2022.04.19"]
[WhiteClock "0:01:26"]
[BlackClock "0:00:06"]

1. e4 {[%clk 0:02:55]}  d5 {[%clk 0:02:54]} 2. exd5 {[%clk 0:02:55]}  Qxd5 {[%clk 0:02:55]} 3. Nc3 {[%clk 0:02:55]}  Qd8 {[%clk 0:02:55]} 4. g3 {[%clk 0:02:55]}  Nf6 {[%clk 0:02:54]} 5. Bg2 {[%clk 0:02:55]}  c6 {[%clk 0:02:53]} 6. Nge2 {[%clk 0:02:55]}  Bf5 {[%clk 0:02:51]} 7. O-O {[%clk 0:02:54]}  e6 {[%clk 0:02:51]} 8. b3 {[%clk 0:02:54]}  Nbd7 {[%clk 0:02:49]} 9. Bb2 {[%clk 0:02:54]}  Bd6 {[%clk 0:02:46]} 10. d3 {[%clk 0:02:55]}  O-O {[%clk 0:02:46]} 11. Ne4 {[%clk 0:02:54]}  Be7 {[%clk 0:02:46]} 12. Qd2 {[%clk 0:02:52]}  h6 {[%clk 0:02:45]} 13. a4 {[%clk 0:02:48]}  Qc7 {[%clk 0:02:41]} 14. a5 {[%clk 0:02:47]}  a6 {[%clk 0:02:40]} 15. Rfd1 {[%clk 0:02:46]}  Rad8 {[%clk 0:02:40]} 16. Qf4 {[%clk 0:02:43]}  Qxf4 {[%clk 0:02:37]} 17. Nxf4 {[%clk 0:02:44]}  Nxe4 {[%clk 0:02:29]} 18. dxe4 {[%clk 0:02:44]}  Bh7 {[%clk 0:02:29]} 19. Nd3 {[%clk 0:02:40]}  Nc5 {[%clk 0:02:20]} 20. Ba3 {[%clk 0:02:40]}  Rxd3 {[%clk 0:01:35]} 21. cxd3 {[%clk 0:02:39]}  Re8 {[%clk 0:01:34]} 22. Rab1 {[%clk 0:02:34]}  e5 {[%clk 0:01:26]} 23. Bh3 {[%clk 0:02:26]}  Kf8 {[%clk 0:01:22]} 24. Kf1 {[%clk 0:02:23]}  f6 {[%clk 0:01:20]} 25. Ke2 {[%clk 0:02:21]}  Bg8 {[%clk 0:01:18]} 26. Rdc1 {[%clk 0:02:15]}  Nxb3 {[%clk 0:01:13]} 27. Bxe7+ {[%clk 0:02:10]}  Rxe7 {[%clk 0:01:12]} 28. Rc3 {[%clk 0:02:10]}  Nd4+ {[%clk 0:01:11]} 29. Ke3 {[%clk 0:02:09]}  Nb5 {[%clk 0:01:11]} 30. Rc5 {[%clk 0:02:08]}  Re8 {[%clk 0:01:10]} 31. f4 {[%clk 0:02:07]}  exf4+ {[%clk 0:01:05]} 32. gxf4 {[%clk 0:02:07]}  Rd8 {[%clk 0:01:05]} 33. Rb4 {[%clk 0:02:03]}  g5 {[%clk 0:01:00]} 34. e5 {[%clk 0:01:59]}  Ke7 {[%clk 0:00:56]} 35. exf6+ {[%clk 0:01:35]}  Kxf6 {[%clk 0:00:57]} 36. fxg5+ {[%clk 0:01:35]}  hxg5 {[%clk 0:00:57]} 37. Rf5+ {[%clk 0:01:35]}  Kg6 {[%clk 0:00:56]} 38. Rg4 {[%clk 0:01:31]}  Rxd3+ {[%clk 0:00:34]} 39. Kxd3 {[%clk 0:01:32]}  Kxf5 {[%clk 0:00:35]} 40. Rd4+ {[%clk 0:01:32]}  Ke5 {[%clk 0:00:19]} 41. Rd7 {[%clk 0:01:27]}  Nd6 {[%clk 0:00:19]} 42. Rg7 {[%clk 0:01:27]}  Bc4+ {[%clk 0:00:18]} 43. Kc3 {[%clk 0:01:27]}  Kf6 {[%clk 0:00:17]} 44. Rd7 {[%clk 0:01:26]}  Ke5 {[%clk 0:00:17]} 45. Rxd6 {[%clk 0:01:25]}  Kxd6 {[%clk 0:00:18]} 46. Kxc4 {[%clk 0:01:26]}  c5 {[%clk 0:00:17]} 47. Bg2 {[%clk 0:01:25]}  Kc7 {[%clk 0:00:05]} 48. Kxc5 {[%clk 0:01:25]}  g4 {[%clk 0:00:05]} 49. Be4 {[%clk 0:01:24]}  b6+ {[%clk 0:00:02]} 50. axb6+ {[%clk 0:01:24]}  Kb8 {[%clk 0:00:03]} 51. Kb4 {[%clk 0:01:25]}  a5+ {[%clk 0:00:04]} 52. Kxa5 {[%clk 0:01:25]}  Kc8 {[%clk 0:00:04]} 53. Ka6 {[%clk 0:01:25]}  Kb8 {[%clk 0:00:05]} 54. b7 {[%clk 0:01:26]}  g3 {[%clk 0:00:05]} 55. hxg3 {[%clk 0:01:26]}  Kc7 {[%clk 0:00:06]} 56. Ka7 {[%clk 0:01:26]} 1-0


[Site "https://www.chess.com"]

[Event "Titled Tuesday Blitz April 19 Early 2022"]
[White "Dorokhin, Mykhailo"]
[Black "Skliarov, Viktor"]
[WhiteFideId "14114178"]
[BlackFideId "14106736"]
[WhiteElo "2280"]
[BlackElo "2229"]
[Result "1-0"]
[Round "10"]
[TimeControl "180+1"]
[Date "2022.04.19"]
[WhiteClock "0:00:02"]
[BlackClock "0:00:01"]

1. d4 {[%clk 0:03:00]}  Nf6 {[%clk 0:02:59]} 2. Nf3 {[%clk 0:02:52]}  g6 {[%clk 0:02:59]} 3. Bf4 {[%clk 0:02:48]}  Bg7 {[%clk 0:02:59]} 4. e3 {[%clk 0:02:49]}  O-O {[%clk 0:03:00]} 5. Be2 {[%clk 0:02:48]}  d6 {[%clk 0:03:00]} 6. h3 {[%clk 0:02:47]}  c5 {[%clk 0:03:00]} 7. c3 {[%clk 0:02:47]}  Qb6 {[%clk 0:02:56]} 8. Qc1 {[%clk 0:02:45]}  Nc6 {[%clk 0:02:37]} 9. O-O {[%clk 0:02:44]}  Bf5 {[%clk 0:01:56]} 10. Na3 {[%clk 0:02:36]}  cxd4 {[%clk 0:01:56]} 11. exd4 {[%clk 0:02:35]}  Rfc8 {[%clk 0:01:56]} 12. Nc4 {[%clk 0:02:31]}  Qd8 {[%clk 0:01:56]} 13. Bh6 {[%clk 0:02:27]}  Rab8 {[%clk 0:01:36]} 14. Bxg7 {[%clk 0:02:26]}  Kxg7 {[%clk 0:01:36]} 15. a4 {[%clk 0:02:20]}  Nd5 {[%clk 0:01:28]} 16. Ne3 {[%clk 0:02:17]}  Nxe3 {[%clk 0:01:21]} 17. Qxe3 {[%clk 0:02:12]}  Na5 {[%clk 0:01:16]} 18. d5 {[%clk 0:01:56]}  a6 {[%clk 0:01:10]} 19. Nd4 {[%clk 0:01:37]}  Bd7 {[%clk 0:01:10]} 20. h4 {[%clk 0:01:34]}  Nc4 {[%clk 0:00:45]} 21. Bxc4 {[%clk 0:01:29]}  Rxc4 {[%clk 0:00:46]} 22. Rfe1 {[%clk 0:01:28]}  Rxa4 {[%clk 0:00:41]} 23. Rxa4 {[%clk 0:01:24]}  Bxa4 {[%clk 0:00:41]} 24. h5 {[%clk 0:01:24]}  Be8 {[%clk 0:00:32]} 25. Qxe7 {[%clk 0:01:18]}  Qxe7 {[%clk 0:00:32]} 26. Rxe7 {[%clk 0:01:19]}  Kf6 {[%clk 0:00:31]} 27. Rc7 {[%clk 0:01:17]}  b5 {[%clk 0:00:24]} 28. hxg6 {[%clk 0:01:11]}  hxg6 {[%clk 0:00:24]} 29. Ra7 {[%clk 0:01:04]}  Rb6 {[%clk 0:00:24]} 30. f4 {[%clk 0:01:00]}  g5 {[%clk 0:00:20]} 31. g3 {[%clk 0:00:59]}  gxf4 {[%clk 0:00:21]} 32. gxf4 {[%clk 0:00:59]}  Kg6 {[%clk 0:00:14]} 33. Kf2 {[%clk 0:00:59]}  f6 {[%clk 0:00:14]} 34. Re7 {[%clk 0:00:30]}  Rb8 {[%clk 0:00:14]} 35. Kf3 {[%clk 0:00:24]}  Bf7 {[%clk 0:00:13]} 36. f5+ {[%clk 0:00:20]}  Kg7 {[%clk 0:00:13]} 37. Ne6+ {[%clk 0:00:21]}  Kg8 {[%clk 0:00:14]} 38. Rd7 {[%clk 0:00:19]}  Rb6 {[%clk 0:00:10]} 39. Nd8 {[%clk 0:00:19]}  Bxd5+ {[%clk 0:00:09]} 40. Ke3 {[%clk 0:00:17]}  a5 {[%clk 0:00:08]} 41. Kd4 {[%clk 0:00:17]}  Bb3 {[%clk 0:00:07]} 42. Nb7 {[%clk 0:00:12]}  a4 {[%clk 0:00:06]} 43. Rxd6 {[%clk 0:00:10]}  Rxb7 {[%clk 0:00:06]} 44. Rxf6 {[%clk 0:00:09]}  b4 {[%clk 0:00:07]} 45. c4 {[%clk 0:00:07]}  a3 {[%clk 0:00:07]} 46. bxa3 {[%clk 0:00:07]}  bxa3 {[%clk 0:00:07]} 47. Ra6 {[%clk 0:00:07]}  a2 {[%clk 0:00:08]} 48. Kc3 {[%clk 0:00:08]}  Kf7 {[%clk 0:00:07]} 49. f6 {[%clk 0:00:07]}  Kg6 {[%clk 0:00:06]} 50. c5 {[%clk 0:00:04]}  Bd5 {[%clk 0:00:02]} 51. Kd4 {[%clk 0:00:03]}  Bc6 {[%clk 0:00:01]} 52. Ke5 {[%clk 0:00:02]} 1-0


[Site "https://www.chess.com"]

[Event "Titled Tuesday Blitz April 19 Early 2022"]
[White "Fernandez Hernandez, Gerardo"]
[Black "Murthy, Pappu"]
[WhiteFideId "2207400"]
[BlackFideId "2013401"]
[WhiteElo "2113"]
[BlackElo "1953"]
[Result "0-1"]
[Round "10"]
[TimeControl "180+1"]
[Date "2022.04.19"]
[WhiteClock "0:00:02"]
[BlackClock "0:00:24"]

1. e4 {[%clk 0:03:00]}  e6 {[%clk 0:02:59]} 2. d3 {[%clk 0:02:55]}  d5 {[%clk 0:02:59]} 3. Qe2 {[%clk 0:02:56]}  dxe4 {[%clk 0:02:57]} 4. dxe4 {[%clk 0:02:57]}  Nc6 {[%clk 0:02:56]} 5. Nf3 {[%clk 0:02:57]}  Nf6 {[%clk 0:02:54]} 6. c3 {[%clk 0:02:55]}  Bc5 {[%clk 0:02:54]} 7. h3 {[%clk 0:02:47]}  e5 {[%clk 0:02:48]} 8. b4 {[%clk 0:02:30]}  Bb6 {[%clk 0:02:45]} 9. a4 {[%clk 0:02:19]}  a6 {[%clk 0:02:43]} 10. Qc2 {[%clk 0:02:06]}  Qe7 {[%clk 0:02:34]} 11. Bc4 {[%clk 0:01:49]}  h6 {[%clk 0:02:30]} 12. O-O {[%clk 0:01:44]}  O-O {[%clk 0:02:30]} 13. Nbd2 {[%clk 0:01:37]}  Rd8 {[%clk 0:02:27]} 14. Nb3 {[%clk 0:01:29]}  Nh5 {[%clk 0:02:05]} 15. Bd5 {[%clk 0:01:12]}  Nf4 {[%clk 0:01:55]} 16. Bxf4 {[%clk 0:01:10]}  exf4 {[%clk 0:01:54]} 17. Rfe1 {[%clk 0:00:43]}  Ne5 {[%clk 0:01:45]} 18. Nbd4 {[%clk 0:00:29]}  c6 {[%clk 0:01:30]} 19. Bb3 {[%clk 0:00:24]}  Bc7 {[%clk 0:01:15]} 20. a5 {[%clk 0:00:22]}  Qf6 {[%clk 0:01:10]} 21. Qa2 {[%clk 0:00:18]}  Rf8 {[%clk 0:01:00]} 22. Rad1 {[%clk 0:00:17]}  Qg6 {[%clk 0:00:54]} 23. Qc2 {[%clk 0:00:14]}  Bxh3 {[%clk 0:00:51]} 24. Nh4 {[%clk 0:00:13]}  Qg4 {[%clk 0:00:46]} 25. Kh2 {[%clk 0:00:08]}  Qxh4 {[%clk 0:00:37]} 26. gxh3 {[%clk 0:00:08]}  f3 {[%clk 0:00:35]} 27. Nf5 {[%clk 0:00:04]}  Ng4+ {[%clk 0:00:34]} 28. Kg1 {[%clk 0:00:04]}  Qxh3 {[%clk 0:00:32]} 29. Ng3 {[%clk 0:00:02]}  Bxg3 {[%clk 0:00:29]} 30. fxg3 {[%clk 0:00:02]}  Qxg3+ {[%clk 0:00:29]} 31. Kh1 {[%clk 0:00:02]}  Nf2+ {[%clk 0:00:25]} 32. Qxf2 {[%clk 0:00:02]}  Qxf2 {[%clk 0:00:25]} 33. Rg1 {[%clk 0:00:02]}  Qh4# {[%clk 0:00:24]} 0-1


[Site "https://www.chess.com"]

[Event "Titled Tuesday Blitz April 19 Early 2022"]
[White "Fernandez Siles, Luis"]
[Black "Kostiukov, Alexandr"]
[WhiteFideId "2209420"]
[BlackFideId "14108100"]
[WhiteElo "2212"]
[BlackElo "2202"]
[Result "1-0"]
[Round "10"]
[TimeControl "180+1"]
[Date "2022.04.19"]
[WhiteClock "0:00:52"]
[BlackClock "0:00:03"]

1. d4 {[%clk 0:03:00]}  g6 {[%clk 0:02:59]} 2. c4 {[%clk 0:02:59]}  Bg7 {[%clk 0:02:58]} 3. Nf3 {[%clk 0:02:59]}  d6 {[%clk 0:02:59]} 4. Nc3 {[%clk 0:02:55]}  e5 {[%clk 0:02:59]} 5. g3 {[%clk 0:02:48]}  exd4 {[%clk 0:02:57]} 6. Nxd4 {[%clk 0:02:47]}  Nc6 {[%clk 0:02:58]} 7. Nxc6 {[%clk 0:02:46]}  bxc6 {[%clk 0:02:59]} 8. Bg2 {[%clk 0:02:46]}  Ne7 {[%clk 0:03:00]} 9. Bg5 {[%clk 0:02:42]}  Bd7 {[%clk 0:02:25]} 10. Ne4 {[%clk 0:02:30]}  O-O {[%clk 0:01:58]} 11. Nf6+ {[%clk 0:02:26]}  Kh8 {[%clk 0:01:57]} 12. Qd2 {[%clk 0:02:19]}  Rb8 {[%clk 0:01:30]} 13. h4 {[%clk 0:02:07]}  h5 {[%clk 0:01:18]} 14. O-O {[%clk 0:01:45]}  Be6 {[%clk 0:01:18]} 15. b3 {[%clk 0:01:42]}  Qc8 {[%clk 0:01:02]} 16. Nxh5 {[%clk 0:01:22]}  gxh5 {[%clk 0:00:43]} 17. Bxe7 {[%clk 0:01:18]}  Re8 {[%clk 0:00:43]} 18. Bf6 {[%clk 0:01:09]}  Bxf6 {[%clk 0:00:19]} 19. Qh6+ {[%clk 0:01:08]}  Kg8 {[%clk 0:00:19]} 20. Qxf6 {[%clk 0:01:09]}  Qd8 {[%clk 0:00:12]} 21. Qh6 {[%clk 0:01:07]}  c5 {[%clk 0:00:07]} 22. Be4 {[%clk 0:01:02]}  f5 {[%clk 0:00:08]} 23. Qg6+ {[%clk 0:00:59]}  Kf8 {[%clk 0:00:04]} 24. Bxf5 {[%clk 0:00:56]}  Bf7 {[%clk 0:00:04]} 25. Qh6+ {[%clk 0:00:53]}  Kg8 {[%clk 0:00:03]} 26. Bh7+ {[%clk 0:00:52]} 1-0


[Site "https://www.chess.com"]

[Event "Titled Tuesday Blitz April 19 Early 2022"]
[White "Friedel, Tom"]
[Black "Kahlert, Thomas"]
[WhiteFideId "2002108"]
[BlackFideId "4625242"]
[WhiteElo "2301"]
[BlackElo "2228"]
[Result "1-0"]
[Round "10"]
[TimeControl "180+1"]
[Date "2022.04.19"]
[WhiteClock "0:02:08"]
[BlackClock "0:02:07"]

1. e4 {[%clk 0:03:00]}  e5 {[%clk 0:02:56]} 2. Nf3 {[%clk 0:03:01]}  Nc6 {[%clk 0:02:50]} 3. Bc4 {[%clk 0:03:01]}  Be7 {[%clk 0:02:44]} 4. O-O {[%clk 0:02:58]}  Nf6 {[%clk 0:02:31]} 5. Nc3 {[%clk 0:02:55]}  O-O {[%clk 0:02:26]} 6. d4 {[%clk 0:02:51]}  exd4 {[%clk 0:02:25]} 7. Nxd4 {[%clk 0:02:50]}  d6 {[%clk 0:02:26]} 8. Nxc6 {[%clk 0:02:49]}  bxc6 {[%clk 0:02:25]} 9. Bf4 {[%clk 0:02:48]}  Be6 {[%clk 0:02:25]} 10. Qd3 {[%clk 0:02:36]}  Bxc4 {[%clk 0:02:24]} 11. Qxc4 {[%clk 0:02:36]}  c5 {[%clk 0:02:20]} 12. Rad1 {[%clk 0:02:36]}  Qc8 {[%clk 0:02:17]} 13. e5 {[%clk 0:02:28]}  dxe5 {[%clk 0:02:12]} 14. Bxe5 {[%clk 0:02:28]}  Rb8 {[%clk 0:02:09]} 15. b3 {[%clk 0:02:19]}  Rb4 {[%clk 0:02:08]} 16. Qe2 {[%clk 0:02:16]}  Ng4 {[%clk 0:02:07]} 17. Nd5 {[%clk 0:02:08]} 1-0


[Site "https://www.chess.com"]

[Event "Titled Tuesday Blitz April 19 Early 2022"]
[White "Gharibyan, Mamikon"]
[Black "Tasev, Dejan"]
[WhiteFideId "13308300"]
[BlackFideId "936618"]
[WhiteElo "2254"]
[BlackElo "2253"]
[Result "1-0"]
[Round "10"]
[TimeControl "180+1"]
[Date "2022.04.19"]
[WhiteClock "0:00:05"]
[BlackClock "0:00:27"]

1. e4 {[%clk 0:02:46]}  e5 {[%clk 0:02:57]} 2. Nf3 {[%clk 0:02:43]}  Nc6 {[%clk 0:02:57]} 3. Bb5 {[%clk 0:02:33]}  a6 {[%clk 0:02:55]} 4. Ba4 {[%clk 0:02:33]}  b5 {[%clk 0:02:54]} 5. Bb3 {[%clk 0:02:32]}  Nf6 {[%clk 0:02:54]} 6. d4 {[%clk 0:02:24]}  exd4 {[%clk 0:02:45]} 7. e5 {[%clk 0:02:06]}  Ne4 {[%clk 0:02:35]} 8. O-O {[%clk 0:01:47]}  Nc5 {[%clk 0:02:33]} 9. Bd5 {[%clk 0:01:36]}  Ne6 {[%clk 0:02:26]} 10. Nbd2 {[%clk 0:01:28]}  Bc5 {[%clk 0:02:19]} 11. Ne4 {[%clk 0:01:20]}  Be7 {[%clk 0:02:10]} 12. Ng3 {[%clk 0:01:19]}  O-O {[%clk 0:02:04]} 13. Nf5 {[%clk 0:01:15]}  Bc5 {[%clk 0:01:52]} 14. Re1 {[%clk 0:00:55]}  Rb8 {[%clk 0:01:51]} 15. Re4 {[%clk 0:00:25]}  Ne7 {[%clk 0:01:44]} 16. Nxe7+ {[%clk 0:00:25]}  Bxe7 {[%clk 0:01:38]} 17. Rg4 {[%clk 0:00:23]}  g6 {[%clk 0:01:26]} 18. Bh6 {[%clk 0:00:22]}  Re8 {[%clk 0:01:26]} 19. Nxd4 {[%clk 0:00:21]}  Bb7 {[%clk 0:01:20]} 20. Bb3 {[%clk 0:00:20]}  c5 {[%clk 0:01:08]} 21. Bxe6 {[%clk 0:00:07]}  dxe6 {[%clk 0:01:07]} 22. Ne2 {[%clk 0:00:08]}  Qxd1+ {[%clk 0:01:02]} 23. Rxd1 {[%clk 0:00:08]}  Red8 {[%clk 0:01:03]} 24. Re1 {[%clk 0:00:08]}  c4 {[%clk 0:00:59]} 25. Ng3 {[%clk 0:00:08]}  Rd7 {[%clk 0:00:54]} 26. h4 {[%clk 0:00:08]}  Rbd8 {[%clk 0:00:53]} 27. Kh2 {[%clk 0:00:09]}  Rd1 {[%clk 0:00:53]} 28. Re3 {[%clk 0:00:09]}  Rb1 {[%clk 0:00:51]} 29. b3 {[%clk 0:00:08]}  cxb3 {[%clk 0:00:50]} 30. axb3 {[%clk 0:00:08]}  Rdd1 {[%clk 0:00:50]} 31. Rc3 {[%clk 0:00:07]}  Rd7 {[%clk 0:00:45]} 32. Bg5 {[%clk 0:00:07]}  Bxg5 {[%clk 0:00:41]} 33. hxg5 {[%clk 0:00:08]}  Kg7 {[%clk 0:00:41]} 34. Rf4 {[%clk 0:00:08]}  a5 {[%clk 0:00:39]} 35. Rc5 {[%clk 0:00:07]}  a4 {[%clk 0:00:37]} 36. Rxb5 {[%clk 0:00:05]}  axb3 {[%clk 0:00:35]} 37. Rxb3 {[%clk 0:00:04]}  Rxb3 {[%clk 0:00:35]} 38. cxb3 {[%clk 0:00:05]}  Rd2 {[%clk 0:00:35]} 39. b4 {[%clk 0:00:05]}  Bd5 {[%clk 0:00:34]} 40. Nf1 {[%clk 0:00:05]}  Rb2 {[%clk 0:00:34]} 41. Ne3 {[%clk 0:00:06]}  Bb7 {[%clk 0:00:33]} 42. Ng4 {[%clk 0:00:06]}  Rb1 {[%clk 0:00:31]} 43. Nh6 {[%clk 0:00:05]}  f5 {[%clk 0:00:30]} 44. exf6+ {[%clk 0:00:05]}  Kf8 {[%clk 0:00:31]} 45. Kg3 {[%clk 0:00:05]}  Bd5 {[%clk 0:00:30]} 46. Ng4 {[%clk 0:00:05]}  Rb3+ {[%clk 0:00:29]} 47. f3 {[%clk 0:00:05]}  Rb2 {[%clk 0:00:28]} 48. Ne5 {[%clk 0:00:05]}  Rb1 {[%clk 0:00:27]} 49. f7 {[%clk 0:00:05]} 1-0


[Site "https://www.chess.com"]